[Event "55th Iranian-ch Men Final 2022"]
[Site "Iran"]
[Date "2022.06.23"]
[Round "12.5"]
[White "Omidi, Arya"]
[Black "Mousavi, Seyed Khalil"]
[Result "0-1"]
[ECO "C60"]
[WhiteElo "2321"]
[BlackElo "2524"]
[Annotator "TA"]
[PlyCount "114"]
[EventDate "2022.06.15"]
[EventType "tourn"]
[EventCountry "IRI"]
[SourceTitle "playchess.com"]
[Source "ChessBase"]
[SourceQuality "1"]
[TimeControl "40/5400+30:1800+30"]

{[%evp 14,114,21,23,37,30,46,29,48,39,61,58,58,58,103,99,77,55,69,41,50,0,-18,-17,31,30,32,33,45,25,35,36,37,29,36,47,43,0,0,0,0,0,0,-37,-50,-52,-39,-43,0,-145,-137,-146,-143,-138,0,-278,-271,-271,-251,-271,-247,-245,-203,-192,-183,-293,-172,-168,-32,-31,-44,-33,-20,-19,0,-12,-9,-76,-63,-77,-62,-73,-73,-222,-223,-222,-222,-210,-158,-143,-69,-69,-11,-1677,-1677,-1179,-1098,-1854,-1722,-1578,-1055,-5081,-2071]} 1. e4 {[%emt 0:00:03]} e5 {[%emt 0:04:23]} 2. Nf3 {[%emt 0:00:52]} Nc6 {[%emt 0:00:21]} 3. Bb5 {[%emt 0:00:44]} a6 {[%emt 1:27:16]} 4. Ba4 {[%emt 0:00:56]} Nge7 {[%emt 0:00:00]} 5. c3 {[%emt 0:00:43][%cal Bc2c3,Bc3d4,Bd4d5][%mdl 32]} g6 {[%emt 0:00:00]} 6. O-O {[%emt 0:00:34]} Bg7 {[%emt 0:00:00]} 7. d4 {[%emt 0:00:54]} exd4 {[%emt 0:00:00]} 8. cxd4 {[%emt 0:00:08]} O-O {[%emt 0:00:00] C60: Ruy Lopez: Unusual Black 3rd moves and 3...g6.} 9. d5 {[%emt 0:08:42]} Na5 {[%emt 0:00:00]} 10. Nbd2 {[%emt 0:01:41]} b5 {[%emt 0:00:00] White has an edge.} 11. Bc2 {[%emt 0:02:28]} c5 {[%emt 0:00:00]} 12. Re1 {[%emt 0:06:30]} d6 {[%emt 0:00:00]} 13. Rb1 {[%emt 0:03:35]} h6 {[%emt 0:00:00] [#]} 14. h3 $146 {[%emt 0:16:35]} ({Predecessor:} 14. Nf1 f5 15. e5 Bb7 16. exd6 Nxd5 17. Re6 Rf6 18. Qe1 Kh7 19. Rxf6 Bxf6 20. Ne3 {0-1 (32) Nemec,P (2211)-Jirka,J (2411) Czech Republic 2012}) 14... f5 {[%emt 0:00:00]} 15. exf5 {[%emt 0:11:32]} Bxf5 {[%emt 0:00:00]} 16. Ne4 {[%emt 0:07:08]} Nc4 {[%emt 0:00:00]} 17. Ng3 {[%emt 0:09:40]} (17. Nh4 $14) 17... Bxc2 $11 {[%emt 0:00:00]} 18. Qxc2 {[%emt 0:00:03]} Nb6 {[%emt 0:00:00]} (18... Qd7 $1 $11 {feels stronger.}) 19. Nh4 $14 {[%emt 0:10:44]} Nbxd5 {[%emt 0:00:00]} 20. Nxg6 {[%emt 0:02:13]} Nxg6 {[%emt 0:08:30]} (20... Rf7 21. Qe4 $16) 21. Qxg6 {[%emt 0:15:15]} Qf6 {[%emt 0:00:30]} 22. Qxf6 {[%emt 0:00:30]} Rxf6 {[%emt 0:00:30]} 23. Nh5 {[%emt 0:00:30]} Rg6 {[%emt 0:00:30]} 24. g4 {[%emt 0:00:30]} Rf8 {[%emt 0:00:30]} 25. Re2 {[%emt 0:00:30]} Be5 {[%emt 0:00:30]} 26. Kg2 {[%emt 0:00:30]} c4 {[%emt 0:00:30]} 27. Bd2 {[%emt 0:00:30]} b4 {[%emt 0:00:30]} 28. Rc1 {[%emt 0:00:30]} c3 {[%emt 0:00:30]} ({But not} 28... Bxb2 29. Rxc4 Nc3 30. Bxh6 $1 $16 {[%mdl 512]}) 29. bxc3 {[%emt 0:00:00]} bxc3 {[%emt 0:00:30]} 30. Be1 {[%emt 0:01:00]} Rf5 {[%emt 0:00:30] aiming for ...Rxh5.} 31. Kh1 {[%emt 0:00:30]} (31. Rd1 $11 {remains equal.} Nb4 32. Ng3 (32. f4 c2 $11)) 31... Rf3 $36 {[%emt 0:00:30][%mdl 2048] Black is on the roll.} 32. Kg2 {[%emt 0:00:00]} Rd3 {[%emt 0:00:30] Black is much more active.} 33. Re4 {[%emt 0:01:00]} Rg5 {[%emt 0:00:30]} (33... Re6 $17 {And now ...Re7 would win.} 34. Ra4 Re7 35. Rxa6 Rc7 36. Ra8+ Kf7) 34. Ng3 $2 {[%emt 0:00:30][%mdl 8192]} (34. f4 $11 Rxh5 35. gxh5 Nxf4+ 36. Rxf4 Bxf4 37. Rxc3 Rxc3 38. Bxc3) 34... Bxg3 $19 {[%emt 0:00:30]} 35. fxg3 {[%emt 0:00:00]} Re5 $1 {[%emt 0:00:00]} 36. Rxe5 {[%emt 0:00:22]} dxe5 {[%emt 0:00:00][%mdl 4096] Endgame KRB-KRN} 37. Kf2 {[%emt 0:00:21]} e4 {[%emt 0:00:30]} 38. h4 {[%emt 0:00:36]} Kf7 {[%emt 0:00:56]} 39. Rc2 {[%emt 0:00:35]} (39. Ke2 $142) 39... Ne3 {[%emt 0:00:30]} (39... Ke6 $142 {Threatens to win with ...Rf3+.} 40. Rc1 Rd2+ $1 {[%mdl 512]} 41. Bxd2 cxd2) 40. Rc1 {[%emt 0:00:00]} Nxg4+ {[%emt 0:00:00]} (40... Kf6 $19 {...Ke5 is the strong threat.} 41. Ke2 (41. Bxc3+ $2 Rxc3 42. Rxc3 Nd1+ 43. Ke2 Nxc3+ $19) 41... Nd5) 41. Ke2 $1 $15 {[%emt 0:04:14]} Re3+ {[%emt 0:04:11]} 42. Kd1 {[%emt 0:01:25]} Ne5 {[%emt 0:00:48]} 43. Rxc3 {[%emt 0:08:41]} Nd3 {[%emt 0:00:46]} 44. Rc7+ {[%emt 0:03:01]} Ke6 {[%emt 0:00:18]} 45. Bc3 {[%emt 0:00:04]} (45. Bd2 $11 {keeps the balance.} Rxg3 46. Bxh6) 45... Rxg3 $17 {[%emt 0:02:20]} 46. Rc6+ {[%emt 0:00:37]} Kd5 {[%emt 0:00:17]} 47. Rxh6 {[%emt 0:03:18]} e3 {[%emt 0:02:06]} 48. Kc2 {[%emt 0:00:27]} (48. Rh8 $17) 48... Kc4 $1 $19 {[%emt 0:01:22]} 49. Rc6+ {[%emt 0:00:51] [#]} Nc5 $1 {[%emt 0:00:30] White must now prevent ...Rg2+.} 50. Be1 {[%emt 0:01:25]} Rg2+ {[%emt 0:00:16]} 51. Kd1 {[%emt 0:00:40]} Rxa2 {[%emt 0:01:18]} ({Better is} 51... Kd4 $17 52. Rc8 e2+ 53. Kc2 Ne4) 52. Rc8 $1 $15 {[%emt 0:01:17]} Kd5 {[%emt 0:07:56]} (52... e2+ $15 53. Kc1 Kd5 54. Rd8+ Ke4) 53. Re8 $2 {[%emt 0:00:59][%mdl 8192]} (53. Rd8+ $11 Kc4 54. Rc8) 53... Ne4 $19 {[%emt 0:00:42] Black is clearly winning.} 54. Rd8+ {[%emt 0:01:04]} Ke5 {[%emt 0:00:35]} 55. Re8+ {[%emt 0:02:31]} Kf4 {[%emt 0:00:06]} 56. Rf8+ {[%emt 0:00:30] [#]} Kg4 $1 {[%emt 0:00:06] ( -> ...e2+)} 57. Rb8 {[%emt 0:00:50]} Nf2+ {[%emt 0:00:37] Weighted Error Value: White=0.58/Black=0.18 (very precise)} (57... Kf3 $142 58. Rf8+ Kg2) 0-1

[Event "55th Iranian-ch Men Final 2022"]
[Site "Iran"]
[Date "2022.06.23"]
[Round "12.6"]
[White "Rastbod, Ali"]
[Black "Ghaem Maghami, Ehsan"]
[Result "0-1"]
[ECO "A29"]
[WhiteElo "2362"]
[BlackElo "2519"]
[Annotator "TA"]
[PlyCount "134"]
[EventDate "2022.06.15"]
[EventType "tourn"]
[EventCountry "IRI"]
[SourceTitle "playchess.com"]
[Source "ChessBase"]
[SourceQuality "1"]
[TimeControl "40/5400+30:1800+30"]

{[%evp 18,134,18,0,0,-1,29,0,0,0,-17,-25,-26,-28,0,0,0,0,-6,-9,-7,-38,-54,-258,-259,-273,-261,-270,-264,-345,-325,-390,-390,-371,-386,-376,-355,-400,-387,-414,-391,-360,-95,-95,-95,-95,-95,-95,0,0,0,-227,-190,-229,-205,-365,-261,-122,-69,-183,-162,-162,-162,-397,-251,-385,-346,-328,-231,-385,-287,-689,-689,-689,-689,-663,-517,-487,-376,-840,-487,-833,-824,-818,-368,-360,0,-626,0,-802,0,-770,0,-718,-487,-680,-680,-648,-231,-647,-665,-1614,-1582,-1510,-1325,-1633,-724,-2216,-1266,-1136,-1151,-29981,-29982,-29981,-29982,-29982,-29983,-29983,-29983]} 1. c4 {[%emt 1:31:00]} e5 {[%emt 0:07:50]} 2. Nc3 {[%emt 0:00:00]} Nf6 {[%emt 0:00:20]} 3. Nf3 {[%emt 0:00:00]} Nc6 {[%emt 0:00:13]} 4. g3 {[%emt 0:00:00]} d5 {[%emt 0:06:10]} 5. cxd5 {[%emt 0:00:00]} Nxd5 {[%emt 0:00:01]} 6. Bg2 {[%emt 0:00:00]} Nb6 {[%emt 0:00:06]} 7. O-O {[%emt 0:00:00]} Be7 {[%emt 0:00:03]} 8. d3 {[%emt 0:00:00]} O-O {[%emt 0:00:09]} 9. Be3 {[%emt 0:00:00]} f5 {[%emt 0:02:12]} 10. Na4 {[%emt 0:00:00]} (10. b4 {seems wilder.} f4 11. Bc5 a5 12. a3) 10... Kh8 {[%emt 0:08:06] A29: English Opening: Four Knights Variation with 4 g3.} 11. Rc1 {[%emt 0:00:00][%cal Oc1c6]} Bf6 {[%emt 0:01:48]} 12. Nd2 {[%emt 0:00:00]} (12. a3 $142) 12... Nd4 $11 {[%emt 0:10:50] The position is equal.} 13. Nc5 {[%emt 0:00:00]} c6 {[%emt 0:01:06] [#]} 14. Bxd4 $146 {[%emt 0:00:00]} ({Predecessor:} 14. Nf3 Nd5 15. Bd2 b6 16. Na4 Bb7 17. Nc3 c5 18. Nxd4 exd4 19. Nxd5 Bxd5 20. Bxd5 Qxd5 {½-½ (48) Maheswaran,P (2240)-Nitin,S (2422) Chennai 2018}) 14... exd4 {[%emt 0:05:49]} 15. Qb3 {[%emt 0:00:00]} Qe7 {[%emt 0:04:18]} 16. Rc2 {[%emt 0:00:00]} Rd8 {[%emt 0:04:49][%cal Bf8d8,Bd8d5,Bd5b5][%mdl 32]} (16... Qxe2 17. Nde4 $1 Qh5 18. Nxf6 Rxf6 19. f4 $14) 17. a4 $1 {[%emt 0:00:00][%cal Ba2a4,Ba4a5][%mdl 32]} Nd5 {[%emt 0:03:52]} 18. a5 {[%emt 0:00:00][%cal Oa5a6]} Rb8 {[%emt 0:02:38] next ...b6 is good for Black.} (18... Qxe2 19. Nde4 $1 Qh5 20. Nxf6 Nxf6 21. a6 $14) 19. Bxd5 {[%emt 0:00:00]} Rxd5 {[%emt 0:02:12]} 20. Na6 {[%emt 0:00:00]} ({Better is} 20. Rfc1 $15 Rd8 21. Qc4) 20... Rb5 $1 $19 {[%emt 0:00:09]} ({Don't take} 20... Ra8 21. Nc7 $1 $16 {[%mdl 512]}) 21. Qxb5 {[%emt 0:00:00]} cxb5 {[%emt 0:00:12]} 22. Nxb8 {[%emt 0:00:00]} Be6 {[%emt 0:09:42]} 23. Rfc1 {[%emt 0:00:00][%cal Oc2c8]} Qe8 {[%emt 0:03:17] Prevents Rc8.} 24. Nb3 {[%emt 0:00:00][%cal Oa5a6]} Qxb8 {[%emt 0:00:42]} ({Don't play} 24... Bxb3 25. Rc8 Bd8 26. a6 bxa6 27. Nc6 Qxe2 28. Rxd8+ Bg8 29. Nxd4 Qxd3 30. Rcc8 $18) 25. Nc5 {[%emt 0:00:00]} Bg8 {[%emt 0:00:42]} 26. Nd7 {[%emt 0:00:00]} Qe8 {[%emt 0:11:33]} 27. Nxf6 {[%emt 0:00:00]} gxf6 {[%emt 0:00:06]} 28. Kf1 {[%emt 0:00:00]} Qh5 {[%emt 0:04:05]} 29. Kg2 {[%emt 0:00:00]} Kg7 $2 {[%emt 0:03:56]} (29... f4 $19 {[%cal Of4f3] and Black stays clearly on top.} 30. f3 fxg3 31. hxg3 Qe5) 30. Rc7+ $17 {[%emt 0:00:15]} Kh6 {[%emt 0:00:43]} 31. Re7 {[%emt 0:01:02]} f4 {[%emt 0:05:21][%cal Of4f3] White must now prevent ...f3+!} 32. f3 {[%emt 0:00:00]} a6 {[%emt 0:00:54]} (32... b4 $1 $17 {Threatens to win with ...fxg3.} 33. a6 bxa6) 33. g4 $11 {[%emt 0:03:51]} Qd5 {[%emt 0:00:54]} 34. b4 $2 {[%emt 0:01:04]} (34. Rcc7 $11 {and White is okay.}) 34... Qd6 {[%emt 0:00:26]} 35. Rcc7 {[%emt 0:00:31]} Qxb4 {[%emt 0:00:17]} 36. Rg7 $2 {[%emt 0:01:09]} (36. Rcd7) 36... Qxa5 {[%emt 0:00:54][%cal Ob5b4]} 37. h4 {[%emt 0:01:27]} Qa2 {[%emt 0:01:39]} (37... Qb6 $17 {aiming for ...Qe6.} 38. g5+ Kh5 39. gxf6 Kh6 $1 40. Rxb7 Qxf6 $1 41. Rxg8 Qe6) 38. Rge7 {[%emt 0:01:03]} ({White should play} 38. Kf2 $1 $15) 38... b4 {[%emt 0:01:26]} 39. Rxb7 {[%emt 0:00:22]} Qa5 $1 {[%emt 0:00:00] Prevents Rb6.} 40. Rbc7 $2 {[%emt 0:00:00]} (40. Re8 Bd5 41. Ra7) 40... Qb5 {[%emt 0:00:00]} 41. Rb7 {[%emt 0:09:52]} (41. Ra7 {is the only way for White.}) 41... Qc5 $1 $19 {[%emt 0:12:07]} 42. Rec7 {[%emt 0:18:46]} Qc3 {[%emt 0:02:30]} 43. Rg7 $2 {[%emt 0:04:29]} ({Don't go for} 43. Rxc3 $2 dxc3 44. Rxb4 c2 45. g5+ Kg6 $19) (43. g5+ Kh5 44. Rg7 (44. Rxc3 $2 dxc3 45. gxf6 c2 $19)) 43... Qc6 {[%emt 0:07:35]} 44. Rbc7 $2 {[%emt 0:04:48]} (44. Ra7 Qe6 45. Rge7) 44... Qe8 {[%emt 0:06:31]} 45. Rge7 {[%emt 0:00:59]} Qf8 {[%emt 0:00:12]} 46. Ra7 {[%emt 0:01:15]} b3 {[%emt 0:00:50]} 47. Reb7 {[%emt 0:00:01]} Qd6 {[%emt 0:00:30][%cal Oa6a5] Prevents Rb6.} 48. Rd7 $2 {[%emt 0:00:59]} (48. Kf2) 48... Qc6 {[%emt 0:01:45] Strongly threatening ...b2.} 49. Rdc7 {[%emt 0:00:31]} (49. Rg7 $142 Qd5 50. Rgb7) 49... Qb5 {[%emt 0:00:37] Hoping for ...b2.} 50. Rg7 {[%emt 0:00:41] [#]} Qe8 {[%emt 0:00:37]} (50... Qe5 $142 $1 51. Rae7 (51. Rge7 Qa5) 51... Qd5) 51. Rge7 {[%emt 0:00:10]} Qf8 {[%emt 0:01:08]} 52. Reb7 {[%emt 0:00:18]} Qd6 {[%emt 0:01:36] Prevents Rb6.} 53. Rd7 $1 {[%emt 0:00:01]} Qc6 {[%emt 0:00:37]} 54. Rdc7 $1 {[%emt 0:00:03]} Qb5 {[%emt 0:00:14] ...b2 is the strong threat.} 55. Rg7 $1 {[%emt 0:00:05]} Qd5 {[%emt 0:00:37]} 56. Rgb7 {[%emt 0:00:50]} a5 {[%emt 0:00:40][%cal Oa5a4]} 57. Rb6 {[%emt 0:00:47][%cal Rb6f6]} Bf7 $2 {[%emt 0:00:47]} (57... Kg6 58. Raa6 Qd8) 58. g5+ $2 {[%emt 0:00:34] [#]} (58. Rxf6+ Kg7 59. Rb6) 58... Kg7 $1 {[%emt 0:00:14]} 59. Rxf6 {[%emt 0:00:30] [#]} a4 $1 {[%emt 0:00:17]} 60. Rxa4 {[%emt 0:00:17]} Qb7 {[%emt 0:00:09] And now ...b2 would win.} 61. h5 {[%emt 0:01:04]} h6 {[%emt 0:01:15]} (61... b2 $142 62. h6+ Kg8 63. Rxd4 Qe7) 62. Rxf4 {[%emt 0:01:13]} hxg5 {[%emt 0:00:17]} 63. h6+ {[%emt 0:01:04]} Kxh6 {[%emt 0:00:16]} 64. Rxf7 {[%emt 0:00:24]} Qxf7 {[%emt 0:00:11] Black mates.} 65. Rb4 {[%emt 0:00:03]} Qe7 {[%emt 0:00:08]} 66. Rxb3 {[%emt 0:00:13]} Qxe2+ {[%emt 0:00:06]} 67. Kg3 {[%emt 0:00:02]} Kh5 {[%emt 0:00:14] Weighted Error Value: White=0.69/Black=0.42} 0-1

[Event "55th Iranian-ch Men Final 2022"]
[Site "Iran"]
[Date "2022.06.23"]
[Round "12.7"]
[White "Tahbaz, Arash"]
[Black "Ashraf, Artin"]
[Result "1-0"]
[ECO "A11"]
[WhiteElo "2451"]
[BlackElo "2096"]
[Annotator "TA"]
[PlyCount "88"]
[EventDate "2022.06.15"]
[EventType "tourn"]
[EventCountry "IRI"]
[SourceTitle "playchess.com"]
[Source "ChessBase"]
[SourceQuality "1"]
[TimeControl "40/5400+30:1800+30"]

{[%evp 13,88,38,53,53,58,71,85,82,88,89,145,103,110,72,68,32,18,10,165,177,166,152,227,218,221,202,222,201,235,223,239,227,259,241,216,178,177,127,135,108,146,83,81,60,75,0,0,0,0,0,0,-80,-91,-85,-89,-97,-33,-69,-77,-110,0,-66,20,0,85,60,534,544,905,883,848,792,1077,1043,1470,1379,1391]} 1. Nf3 {[%emt 0:00:26]} d5 {[%emt 0:04:26]} 2. g3 {[%emt 1:31:04]} Nf6 {[%emt 0:00:08]} 3. Bg2 {[%emt 0:00:00]} Bf5 {[%emt 0:00:15]} 4. O-O {[%emt 0:00:00]} e6 {[%emt 0:00:06]} 5. d3 {[%emt 0:00:00]} h6 {[%emt 0:00:06]} 6. c4 {[%emt 0:00:00]} c6 {[%emt 0:00:09]} 7. cxd5 {[%emt 0:00:00]} cxd5 {[%emt 0:00:14]} 8. Qb3 {[%emt 0:00:00] A11: English Opening: 1...c6.} Qc8 {[%emt 0:00:15]} 9. Nd4 {[%emt 0:00:00] [#]} Bh7 $146 {[%emt 1:29:21]} ({Predecessor:} 9... Bg6 10. Bf4 Nc6 11. Rc1 Qd7 12. Nxc6 bxc6 13. Nd2 Bd6 14. Qc3 Bxf4 15. gxf4 Nh5 {1-0 (27) Meskovs,N (2542)-Grishchenko,S (2431) Riga 2018}) 10. Bf4 {White is better.} Nc6 {[%emt 0:00:00]} 11. Rc1 {[%emt 0:00:00]} Nd7 {[%emt 0:00:00]} (11... Qd7 $142 12. Nxc6 bxc6) 12. Nxc6 {[%emt 0:00:00] White is much more active. The black rooks are badly placed.} bxc6 {[%emt 0:00:00]} 13. Qa4 Bc5 {[%emt 0:02:00] [#]} 14. Rxc5 $1 {[%emt 0:00:00]} Nxc5 {[%emt 0:00:00]} 15. Qd4 $36 {[%emt 0:00:00][%csl LRc5,LRg7][%mdl 2048] White has some pressure.} Nd7 {[%emt 0:00:00]} (15... e5 $1 $11 {and Black is okay.} 16. Bxe5 (16. Qxe5+ Ne6 $15) 16... Ne6) 16. Qxg7 $18 {[%emt 0:00:00]} Ke7 {[%emt 0:00:00]} 17. Bxh6 {[%emt 0:07:30]} Qg8 {[%emt 0:00:00] [#]} (17... Rg8 $16 {keeps fighting.} 18. Qd4 (18. Qxh7 Nf6 $11) 18... Bg6) 18. Bg5+ $1 {[%emt 0:00:00] A strong pair of Bishops.} Kd6 {[%emt 0:00:00]} 19. Bf4+ {[%emt 0:00:00]} Ke7 {[%emt 0:00:00] [#]} 20. Qc3 {[%emt 0:00:00]} c5 {[%emt 0:00:00]} 21. Na3 {[%emt 0:00:00] aiming for b4.} f6 {[%emt 0:00:00]} 22. b4 {[%emt 0:00:00]} Rc8 {[%emt 0:00:00]} 23. bxc5 {[%emt 0:03:00]} Rxc5 {[%emt 0:05:00]} 24. Qb3 {[%emt 0:00:30] Hoping for Nb5.} a6 {[%emt 0:00:30]} 25. Nc2 {[%emt 0:00:00]} (25. Qb4 $18 {Black must now prevent Be3.} Kf7 26. Rd1) 25... Qc8 $16 {[%emt 0:00:30]} 26. Ne1 {[%emt 0:00:00]} Kf7 {[%emt 0:00:00]} 27. e4 {[%emt 0:01:30]} (27. Qd1 $142) 27... dxe4 {[%emt 0:00:00]} 28. dxe4 {[%emt 0:00:00]} Rd8 {[%emt 0:00:00]} 29. Nf3 {[%emt 0:00:00]} (29. Qe3 $16) 29... Bxe4 $11 {[%emt 0:00:00]} 30. Qe3 {[%emt 0:00:00]} Bd5 {[%emt 0:00:00]} 31. Bd6 {[%emt 0:00:00]} Rc4 {[%emt 0:00:00]} 32. Qh6 {[%emt 0:00:00]} (32. Re1 $11 {keeps the balance.} Qc6 33. Qh6 Qxd6 34. Qh7+ Ke8 35. Qh5+ Kf8 36. Qh8+ Ke7 37. Qh7+ Ke8 38. Qh5+ Kf8 39. Qh8+ Ke7 40. Qh7+ Kf8 41. Qh8+) 32... Rh8 $17 {[%emt 0:00:00]} 33. Qd2 {[%emt 0:00:00]} Qc6 {[%emt 0:00:00][%csl LRd6,LRf3]} 34. Ba3 {[%emt 0:00:00][%cal Oh2h4]} Rh5 {[%emt 0:01:39]} ({Better is} 34... Nf8 $17 35. Qe2 Ng6) 35. Re1 {[%emt 0:00:00][%cal Oh2h4,Ba1e1,Be1e6,Be6d6][%mdl 32]} Qa4 {[%emt 0:00:36]} 36. Bd6 {[%emt 0:00:00]} Qc6 {[%emt 0:01:07]} 37. Ba3 {[%emt 0:00:00][%cal Oh2h4]} Qa8 {[%emt 0:00:37]} ({Black should try} 37... Nc5 $15 38. Bf1 Ne4) 38. h4 {[%emt 0:05:30]} Rh7 {[%emt 0:01:06]} (38... Qb7 $11) 39. Qd3 {[%emt 0:00:00] Dancing on a razor blade.} Kg8 {[%emt 0:00:23][%mdl 8192] [#]} (39... Rh5 $14) 40. Rxe6 $3 $18 {[%emt 0:00:00][%cal Of3g5][%mdl 512] Strongly threatening Ng5! White is clearly winning.} Rg7 {[%emt 0:00:00] Prevents Ng5.} (40... Rc3 41. Qxc3) 41. Rd6 {[%emt 0:01:00]} Ra4 {[%emt 0:03:07]} 42. Bb2 {[%emt 0:16:07]} ({Not} 42. Qxd5+ Qxd5 43. Rxd5 Rxa3 $16) 42... Ra5 {[%emt 0:02:42] [#]} 43. Ne5 $1 {[%emt 0:00:52][%mdl 512]} Nb6 {[%emt 0:01:37]} (43... fxe5 44. Rxd5) 44. Nc6 {[%emt 0:02:03] And now Ne7+ would win.} Rc5 {[%emt 0:00:17] Weighted Error Value: White=0.19 (very precise) /Black=0.51} 1-0

[Event "55th Iranian-ch Men Final 2022"]
[Site "Iran"]
[Date "2022.06.24"]
[Round "13.1"]
[White "Ashraf, Artin"]
[Black "Mosadeghpour, Masoud"]
[Result "1-0"]
[ECO "D02"]
[WhiteElo "2096"]
[BlackElo "2474"]
[Annotator "TA"]
[PlyCount "81"]
[EventDate "2022.06.15"]
[EventType "tourn"]
[EventCountry "IRI"]
[SourceTitle "playchess.com"]
[Source "ChessBase"]
[SourceQuality "1"]
[TimeControl "40/5400+30:1800+30"]

{[%evp 13,81,8,18,0,0,0,5,0,15,8,8,8,10,12,12,6,8,4,27,14,27,27,27,52,37,0,55,43,81,54,68,61,73,68,75,44,80,77,156,161,160,150,144,136,135,126,276,272,675,669,639,208,204,172,320,301,310,302,313,278,323,302,533,527,428,483,465,391,387,364]} 1. Nf3 {[%emt 0:07:01]} Nf6 {[%emt 0:04:44]} 2. g3 {[%emt 0:00:09]} d5 {[%emt 0:03:32]} 3. Bg2 {[%emt 0:00:15]} c5 {[%emt 0:00:10]} 4. O-O {[%emt 0:12:23]} e6 {[%emt 0:08:17]} 5. d4 {[%emt 0:12:30]} cxd4 {[%emt 0:01:01]} 6. b3 {[%emt 0:00:17]} Nc6 {[%emt 0:07:32]} 7. Nxd4 {[%emt 0:01:04]} Bc5 {[%emt 0:02:04]} 8. Nxc6 {[%emt 0:09:37] now supersedes 8.Bb2. D02: 1 d4 d5 2 Nf3 sidelines, including 2...Nf6 3 g3 and 2...Nf6 3 Bf4.} bxc6 {[%emt 0:00:17]} 9. c4 {[%emt 0:00:08]} O-O {[%emt 0:05:12]} 10. Bb2 {[%emt 0:01:47] The position is equal.} Ba6 {[%emt 0:11:21]} 11. Qc2 {[%emt 0:04:31] [#] Threatens to win with cxd5.} Rc8 {[%emt 0:06:42]} 12. Nc3 {[%emt 0:09:25]} Qe7 {[%emt 0:05:20]} 13. Na4 {[%emt 0:07:14]} Bd6 {[%emt 0:03:08]} 14. Rfd1 {[%emt 0:00:10]} Rfd8 {[%emt 0:04:00] [#]} 15. e3 $146 {[%emt 0:03:06]} ({Predecessor:} 15. Rac1 h6 16. e3 Bb4 17. h3 Bb7 18. Qe2 Ba6 19. Qc2 Rd7 20. Be5 Ba3 21. Rb1 Bb4 22. Rbc1 Rdd8 23. Bb2 {½-½ (23) Wiwe,A (2276)-Renet,O (2535) Skopje 2015}) 15... Nd7 {[%emt 0:07:15]} 16. Rac1 {[%emt 0:11:08]} f5 {[%emt 0:13:09]} 17. Qd2 {[%emt 0:02:13][%cal Rc4d5]} Bb4 {[%emt 0:03:26]} 18. Bc3 {[%emt 0:07:13]} Ba3 {[%emt 0:02:31]} 19. Bb2 {[%emt 0:01:38]} (19. Ba5 $5 {[%cal Ra5d8]}) 19... Bxb2 {[%emt 0:05:52]} (19... Bb4 $11 20. Qc2 Bd6) 20. Qxb2 {[%emt 0:00:07]} (20. Nxb2 $5 {[%cal Rd2a5]} Bb7 21. Qc3 $14 (21. cxd5 exd5 22. Nd3 g6 $14)) 20... Qb4 {[%emt 0:02:26][%cal Ra6c4]} 21. a3 {[%emt 0:03:36]} Qb8 {[%emt 0:00:18]} 22. Qc3 {[%emt 0:01:29]} Bb7 {[%emt 0:01:44]} 23. Qa5 {[%emt 0:00:40] White is more active.} Ba8 {[%emt 0:00:46]} 24. b4 {[%emt 0:01:24]} (24. cxd5 cxd5 25. Rc3 Rxc3 26. Nxc3 Rc8 $11) 24... Nb6 {[%emt 0:00:57]} 25. Bf1 {[%emt 0:00:42]} Nxc4 {[%emt 0:00:42]} (25... Nxa4 $142 26. Qxa4 Rc7) 26. Bxc4 $16 {[%emt 0:00:10]} dxc4 {[%emt 0:00:01]} 27. Rxd8+ {[%emt 0:00:54]} Rxd8 {[%emt 0:00:01]} 28. Nc5 {[%emt 0:00:24]} Qb6 {[%emt 0:01:26]} 29. Qa4 {[%emt 0:01:10]} (29. Nxe6 $6 Qxa5 30. bxa5 Rd3 $14) 29... e5 {[%emt 0:00:32] Loses the game.} (29... Rd6 $16 30. Rd1 (30. Rxc4 Bb7 $16) 30... Rd5) 30. Qc2 $18 {[%emt 0:00:07]} (30. Rxc4 $6 Bb7 31. Nxb7 Qxb7 $16) 30... e4 $2 {[%emt 0:00:32] [#]} (30... Rd5 31. Qxf5 Qc7 32. Rxc4 Qf7 33. Qc8+ Qf8) 31. Qxc4+ {[%emt 0:00:55]} Rd5 {[%emt 0:00:13]} 32. Rd1 $2 {[%emt 0:00:37]} (32. Ne6) 32... Qb5 {[%emt 0:00:45]} 33. Qa2 {[%emt 0:00:18]} a5 {[%emt 0:00:32]} (33... Qb8 $142 34. Qc2 Qd6 35. Rxd5 Qxd5) 34. Rxd5 {[%emt 0:00:10]} cxd5 {[%emt 0:00:01][%mdl 4096] Endgame KQB-KQN} 35. Qb2 {[%emt 0:00:19] Black must now prevent Qe5.} axb4 {[%emt 0:00:52]} 36. axb4 {[%emt 0:00:20] aiming for Qe5.} Bc6 {[%emt 0:00:36]} 37. Qe5 {[%emt 0:00:24]} Qe2 $2 {[%emt 0:00:32]} (37... h6 38. h3 (38. Qxf5 d4 $16) 38... Kh8) 38. Qe6+ {[%emt 0:00:53]} Kf8 {[%emt 0:00:10]} 39. Qxf5+ {[%emt 0:00:08]} (39. Qxc6 Qd1+ 40. Kg2 Qf3+ 41. Kh3 Qh5+ 42. Kg2 Qf3+ 43. Kh3 Qh5+ 44. Kg2 Qf3+ $11) 39... Ke7 {[%emt 0:00:45]} 40. h4 {[%emt 0:00:00]} ({Not} 40. Qe6+ Kf8 41. Qc8+ (41. Qxc6 Qd1+ 42. Kg2 Qf3+ 43. Kh3 Qh5+ 44. Kg2 Qf3+ 45. Kh3 Qh5+ 46. Kg2 Qf3+ $11) 41... Kf7 42. Qf5+ (42. Qxc6 Qd1+ 43. Kg2 Qf3+ 44. Kh3 Qh5+ 45. Kg2 Qf3+ 46. Kh3 Qh5+ 47. Kg2 Qf3+ $11) 42... Ke7 43. Qe6+ (43. Qxh7 Qd1+ 44. Kg2 Qf3+ 45. Kh3 Kf7 $16) 43... Kf8 44. Qf5+ (44. Qxc6 Qd1+ 45. Kg2 Qf3+ 46. Kh3 Qh5+ 47. Kg2 Qf3+ 48. Kh3 Qh5+ 49. Kg2 Qf3+ $11) 44... Ke7 $18) 40... Qd1+ {[%emt 0:00:00]} 41. Kg2 {[%emt 0:02:43] Weighted Error Value: White=0.22 (precise) /Black=0.40} 1-0